[Event "Late-Titled-Tuesday-Blitz-September-19-2023"]
[Site "Chess.com"]
[Date "2023.09.19"]
[Round "1"]
[White "Lady_Nika"]
[Black "Jarming"]
[Result "0-1"]
[WhiteElo "2445"]
[BlackElo "2752"]
[TimeControl "180+1"]
[EndTime "14:07:11 PDT"]
[Termination "Jarming won on time"]

1. c4 {[%clk 0:03:00.9]} 1... Nf6 {[%clk 0:02:57.8]} 2. Nc3 {[%clk 0:03:00.9]}
2... e6 {[%clk 0:02:58.2]} 3. d4 {[%clk 0:02:59.5]} 3... Bb4 {[%clk 0:02:57.4]}
4. Nf3 {[%clk 0:02:59.8]} 4... b6 {[%clk 0:02:57]} 5. g3 {[%clk 0:02:58.2]} 5...
Bb7 {[%clk 0:02:49.6]} 6. Bg2 {[%clk 0:02:57.1]} 6... O-O {[%clk 0:02:50]} 7.
O-O {[%clk 0:02:52.8]} 7... Bxc3 {[%clk 0:02:47.4]} 8. bxc3 {[%clk 0:02:52.9]}
8... d6 {[%clk 0:02:48.3]} 9. Bg5 {[%clk 0:02:50.6]} 9... Nbd7 {[%clk 0:02:47]}
10. Re1 {[%clk 0:02:50.5]} 10... h6 {[%clk 0:02:46.4]} 11. Bxf6 {[%clk
0:02:50.2]} 11... Nxf6 {[%clk 0:02:47.3]} 12. Qc2 {[%clk 0:02:50.1]} 12... Be4
{[%clk 0:02:44.4]} 13. Qb2 {[%clk 0:02:48.4]} 13... Qc8 {[%clk 0:02:43.5]} 14.
Nd2 {[%clk 0:02:46.7]} 14... Bxg2 {[%clk 0:02:42.5]} 15. Kxg2 {[%clk 0:02:46.1]}
15... Re8 {[%clk 0:02:42.3]} 16. e4 {[%clk 0:02:45.7]} 16... e5 {[%clk
0:02:42.8]} 17. Re2 {[%clk 0:02:43.2]} 17... Nh5 {[%clk 0:02:33.4]} 18. h3
{[%clk 0:02:35.4]} 18... Re6 {[%clk 0:02:26]} 19. Nf3 {[%clk 0:02:28.4]} 19...
Qb7 {[%clk 0:01:56.7]} 20. Rae1 {[%clk 0:02:23.2]} 20... Rae8 {[%clk 0:01:55.9]}
21. d5 {[%clk 0:02:03.4]} 21... R6e7 {[%clk 0:01:48.6]} 22. Nh4 {[%clk
0:02:00.1]} 22... g6 {[%clk 0:01:48.5]} 23. Rf1 {[%clk 0:01:55.1]} 23... c6
{[%clk 0:01:41.9]} 24. Qa3 {[%clk 0:01:50.2]} 24... Qc7 {[%clk 0:01:35]} 25. Rd2
{[%clk 0:01:38.6]} 25... Rd8 {[%clk 0:01:31.6]} 26. Rfd1 {[%clk 0:01:35.9]}
26... Nf6 {[%clk 0:01:31.2]} 27. f3 {[%clk 0:01:32.5]} 27... cxd5 {[%clk
0:01:26.6]} 28. cxd5 {[%clk 0:01:31.3]} 28... Rc8 {[%clk 0:01:27.1]} 29. Rd3
{[%clk 0:01:31]} 29... Nd7 {[%clk 0:01:27.1]} 30. Qc1 {[%clk 0:01:30.3]} 30...
Kh7 {[%clk 0:01:22.2]} 31. Rf1 {[%clk 0:01:25.1]} 31... Qc4 {[%clk 0:01:21]} 32.
Re3 {[%clk 0:01:14.9]} 32... Nc5 {[%clk 0:01:17.4]} 33. Qa3 {[%clk 0:00:55.1]}
33... Qa4 {[%clk 0:01:10.2]} 34. Qb2 {[%clk 0:00:45.1]} 34... Rec7 {[%clk
0:01:07.6]} 35. f4 {[%clk 0:00:42]} 35... exf4 {[%clk 0:01:06.3]} 36. Rxf4
{[%clk 0:00:25.6]} 36... g5 {[%clk 0:01:03.1]} 37. Rg4 {[%clk 0:00:21.1]} 37...
gxh4 {[%clk 0:00:57.9]} 38. e5 {[%clk 0:00:20.5]} 38... Qd1 {[%clk 0:00:55.1]}
39. exd6 {[%clk 0:00:16.7]} 39... Qxd5+ {[%clk 0:00:54.9]} 40. Rf3 {[%clk
0:00:16.7]} 40... Nd3 {[%clk 0:00:49.4]} 41. Qe2 {[%clk 0:00:12.7]} 41... Rxc3
{[%clk 0:00:48.1]} 42. Qe7 {[%clk 0:00:01.1]} 42... Ne1+ {[%clk 0:00:44.3]} 0-1

[Event "Late-Titled-Tuesday-Blitz-September-19-2023"]
[Site "Chess.com"]
[Date "2023.09.19"]
[Round "1"]
[White "gmpeter008"]
[Black "BeanScreen"]
[Result "0-1"]
[WhiteElo "2423"]
[BlackElo "2707"]
[TimeControl "180+1"]
[EndTime "14:07:12 PDT"]
[Termination "BeanScreen won on time"]

1. c4 {[%clk 0:03:00.9]} 1... e5 {[%clk 0:01:19.5]} 2. Nc3 {[%clk 0:02:57.1]}
2... Nf6 {[%clk 0:01:20.1]} 3. Nf3 {[%clk 0:02:56.2]} 3... Nc6 {[%clk
0:01:19.9]} 4. e4 {[%clk 0:02:56.3]} 4... Bb4 {[%clk 0:01:19.6]} 5. d3 {[%clk
0:02:56.6]} 5... d6 {[%clk 0:01:19.6]} 6. a3 {[%clk 0:02:56.5]} 6... Bc5 {[%clk
0:01:19.2]} 7. b4 {[%clk 0:02:56.8]} 7... Bb6 {[%clk 0:01:19]} 8. Be2 {[%clk
0:02:57.2]} 8... O-O {[%clk 0:01:18.1]} 9. O-O {[%clk 0:02:57]} 9... a5 {[%clk
0:01:12.5]} 10. b5 {[%clk 0:02:56.9]} 10... Nd4 {[%clk 0:01:12.5]} 11. Be3
{[%clk 0:02:56.9]} 11... Nxf3+ {[%clk 0:01:11.1]} 12. Bxf3 {[%clk 0:02:56.4]}
12... Bxe3 {[%clk 0:01:12]} 13. fxe3 {[%clk 0:02:56.5]} 13... h6 {[%clk
0:01:10.5]} 14. Qd2 {[%clk 0:02:46.6]} 14... Be6 {[%clk 0:01:09.9]} 15. Rf2
{[%clk 0:02:46.2]} 15... Bg4 {[%clk 0:01:03]} 16. Raf1 {[%clk 0:02:45.1]} 16...
c6 {[%clk 0:01:01.8]} 17. Qd1 {[%clk 0:02:35.3]} 17... Qd7 {[%clk 0:00:59.2]}
18. a4 {[%clk 0:02:28.2]} 18... Bxf3 {[%clk 0:00:53.7]} 19. Rxf3 {[%clk
0:02:25.4]} 19... Nh7 {[%clk 0:00:53.2]} 20. h4 {[%clk 0:02:20.7]} 20... Qg4
{[%clk 0:00:40.3]} 21. Rxf7 {[%clk 0:02:12.4]} 21... Qxh4 {[%clk 0:00:40.3]} 22.
Rxb7 {[%clk 0:01:59.7]} 22... Rxf1+ {[%clk 0:00:39.2]} 23. Qxf1 {[%clk
0:02:00.3]} 23... Rf8 {[%clk 0:00:38.9]} 24. Qe2 {[%clk 0:01:58.2]} 24... Ng5
{[%clk 0:00:39]} 25. bxc6 {[%clk 0:01:23.5]} 25... Qg3 {[%clk 0:00:37.6]} 26. c7
{[%clk 0:00:31.5]} 26... Nh3+ {[%clk 0:00:36.3]} 27. Kh1 {[%clk 0:00:30.7]}
27... Nf2+ {[%clk 0:00:35.4]} 28. Kg1 {[%clk 0:00:30.6]} 28... Ng4 {[%clk
0:00:34.8]} 29. Qxg4 {[%clk 0:00:19.1]} 29... Qxg4 {[%clk 0:00:34.4]} 30. Rb8
{[%clk 0:00:13.4]} 30... Rc8 {[%clk 0:00:30.8]} 31. Nd5 {[%clk 0:00:11.9]} 31...
Kf7 {[%clk 0:00:30.3]} 32. Rxc8 {[%clk 0:00:08.5]} 32... Qxc8 {[%clk 0:00:29.4]}
33. Kf2 {[%clk 0:00:05.9]} 33... Qb7 {[%clk 0:00:26]} 34. Kg3 {[%clk 0:00:04.9]}
34... Ke6 {[%clk 0:00:24.6]} 35. Kg4 {[%clk 0:00:02.9]} 35... g6 {[%clk
0:00:21.1]} 36. d4 {[%clk 0:00:01.1]} 36... Kd7 {[%clk 0:00:20.1]} 37. dxe5
{[%clk 0:00:01.2]} 37... dxe5 {[%clk 0:00:20.6]} 38. Kf3 {[%clk 0:00:01.5]}
38... Qb1 {[%clk 0:00:19.9]} 0-1

[Event "Late-Titled-Tuesday-Blitz-September-19-2023"]
[Site "Chess.com"]
[Date "2023.09.19"]
[Round "1"]
[White "jaskol95"]
[Black "ilya2700"]
[Result "0-1"]
[WhiteElo "2549"]
[BlackElo "2290"]
[TimeControl "180+1"]
[EndTime "14:07:15 PDT"]
[Termination "ilya2700 won by checkmate"]

1. d4 {[%clk 0:03:00.1]} 1... d5 {[%clk 0:02:58.4]} 2. Nc3 {[%clk 0:03:00.2]}
2... Nf6 {[%clk 0:02:54.2]} 3. Bf4 {[%clk 0:03:00.3]} 3... e6 {[%clk 0:02:47.7]}
4. Nb5 {[%clk 0:02:59.8]} 4... Na6 {[%clk 0:02:47.4]} 5. e3 {[%clk 0:02:59.2]}
5... Be7 {[%clk 0:02:48.1]} 6. Nf3 {[%clk 0:02:58]} 6... O-O {[%clk 0:02:48.7]}
7. Ne5 {[%clk 0:02:50.8]} 7... c6 {[%clk 0:02:45.5]} 8. Nc3 {[%clk 0:02:50.9]}
8... c5 {[%clk 0:02:44.3]} 9. Be2 {[%clk 0:02:46.1]} 9... Nb8 {[%clk 0:02:39.7]}
10. O-O {[%clk 0:02:39]} 10... Nc6 {[%clk 0:02:39.3]} 11. Bb5 {[%clk 0:02:13.4]}
11... cxd4 {[%clk 0:02:26.6]} 12. exd4 {[%clk 0:01:57.5]} 12... Qb6 {[%clk
0:02:26.3]} 13. Bxc6 {[%clk 0:01:52.2]} 13... bxc6 {[%clk 0:02:25.6]} 14. Rb1
{[%clk 0:01:52.3]} 14... a5 {[%clk 0:01:56.1]} 15. Re1 {[%clk 0:01:51.6]} 15...
a4 {[%clk 0:01:54.5]} 16. a3 {[%clk 0:01:46.9]} 16... c5 {[%clk 0:01:53.9]} 17.
Be3 {[%clk 0:01:30.5]} 17... cxd4 {[%clk 0:01:47.6]} 18. Bxd4 {[%clk 0:01:30.2]}
18... Bc5 {[%clk 0:01:47.7]} 19. Nf3 {[%clk 0:01:21.6]} 19... Bd7 {[%clk
0:01:41.3]} 20. Bxc5 {[%clk 0:01:15.8]} 20... Qxc5 {[%clk 0:01:39.8]} 21. Qd4
{[%clk 0:01:15]} 21... Qxd4 {[%clk 0:01:34.1]} 22. Nxd4 {[%clk 0:01:15.3]} 22...
Rfe8 {[%clk 0:01:32.1]} 23. f4 {[%clk 0:01:01.9]} 23... Rec8 {[%clk 0:01:27.8]}
24. g3 {[%clk 0:00:57.4]} 24... Rc4 {[%clk 0:01:26.6]} 25. Red1 {[%clk
0:00:56.3]} 25... Rb8 {[%clk 0:01:16.5]} 26. Nf3 {[%clk 0:00:46.3]} 26... Be8
{[%clk 0:01:13.5]} 27. Ne5 {[%clk 0:00:46.1]} 27... Rc7 {[%clk 0:01:10]} 28. Kf2
{[%clk 0:00:43.5]} 28... Rcb7 {[%clk 0:00:56.8]} 29. Nd3 {[%clk 0:00:43.7]}
29... d4 {[%clk 0:00:48.8]} 30. Na2 {[%clk 0:00:35.3]} 30... Ng4+ {[%clk
0:00:45.4]} 31. Ke2 {[%clk 0:00:28.2]} 31... Ne3 {[%clk 0:00:43.6]} 32. Rd2
{[%clk 0:00:26.3]} 32... f6 {[%clk 0:00:42.7]} 33. Nab4 {[%clk 0:00:25.8]} 33...
Bh5+ {[%clk 0:00:42.2]} 34. Kf2 {[%clk 0:00:23.2]} 34... Ng4+ {[%clk 0:00:41.2]}
35. Kg2 {[%clk 0:00:23]} 35... Ne3+ {[%clk 0:00:41.1]} 36. Kf2 {[%clk
0:00:23.4]} 36... e5 {[%clk 0:00:39]} 37. fxe5 {[%clk 0:00:21.6]} 37... fxe5
{[%clk 0:00:39.4]} 38. Nxe5 {[%clk 0:00:20.6]} 38... Rf8+ {[%clk 0:00:40.1]} 39.
Kg1 {[%clk 0:00:20.7]} 39... Re7 {[%clk 0:00:38.6]} 40. Nbc6 {[%clk 0:00:19.7]}
40... Re6 {[%clk 0:00:37.1]} 41. Rxd4 {[%clk 0:00:16.7]} 41... Ref6 {[%clk
0:00:37.1]} 42. Rf4 {[%clk 0:00:11.7]} 42... Rxf4 {[%clk 0:00:34.4]} 43. gxf4
{[%clk 0:00:12.6]} 43... Rxf4 {[%clk 0:00:34.4]} 44. b3 {[%clk 0:00:12.4]} 44...
Bd1 {[%clk 0:00:26.1]} 45. bxa4 {[%clk 0:00:10.9]} 45... Rf1# {[%clk 0:00:25.7]}
0-1

[Event "Late-Titled-Tuesday-Blitz-September-19-2023"]
[Site "Chess.com"]
[Date "2023.09.19"]
[Round "1"]
[White "Chempiblinka"]
[Black "bipe137"]
[Result "0-1"]
[WhiteElo "2158"]
[BlackElo "2533"]
[TimeControl "180+1"]
[EndTime "14:07:15 PDT"]
[Termination "bipe137 won on time"]

1. Nf3 {[%clk 0:02:58.7]} 1... d5 {[%clk 0:02:53.8]} 2. c4 {[%clk 0:02:58.7]}
2... e6 {[%clk 0:02:53.6]} 3. g3 {[%clk 0:02:57.1]} 3... Nf6 {[%clk 0:02:51.4]}
4. Bg2 {[%clk 0:02:57.6]} 4... Be7 {[%clk 0:02:51]} 5. O-O {[%clk 0:02:57.7]}
5... O-O {[%clk 0:02:42.6]} 6. Qc2 {[%clk 0:02:56.7]} 6... a6 {[%clk 0:02:41.6]}
7. d4 {[%clk 0:02:47.4]} 7... dxc4 {[%clk 0:02:40.3]} 8. Qxc4 {[%clk 0:02:47.7]}
8... b5 {[%clk 0:02:39.8]} 9. Qc2 {[%clk 0:02:47.1]} 9... Bb7 {[%clk 0:02:40.3]}
10. Bd2 {[%clk 0:02:31.3]} 10... Be4 {[%clk 0:02:38.7]} 11. Qc1 {[%clk
0:02:16.5]} 11... Bb7 {[%clk 0:02:35.8]} 12. Ba5 {[%clk 0:02:09.8]} 12... Nc6
{[%clk 0:02:32.7]} 13. Bd2 {[%clk 0:02:01.7]} 13... Nxd4 {[%clk 0:02:32]} 14.
Nxd4 {[%clk 0:02:00.9]} 14... Bxg2 {[%clk 0:02:32.1]} 15. Nxe6 {[%clk
0:01:46.2]} 15... fxe6 {[%clk 0:02:22.5]} 16. Kxg2 {[%clk 0:01:46.1]} 16... c5
{[%clk 0:02:22.1]} 17. Nc3 {[%clk 0:01:24.9]} 17... Nd5 {[%clk 0:02:07.7]} 18.
Qc2 {[%clk 0:01:01.9]} 18... Rc8 {[%clk 0:02:02.5]} 19. Rad1 {[%clk 0:01:01.3]}
19... Bf6 {[%clk 0:01:59]} 20. Kg1 {[%clk 0:00:44.3]} 20... Nxc3 {[%clk
0:01:47.4]} 21. Bxc3 {[%clk 0:00:43.7]} 21... Qe7 {[%clk 0:01:48]} 22. Rd3
{[%clk 0:00:24.7]} 22... c4 {[%clk 0:01:45.1]} 23. Re3 {[%clk 0:00:23]} 23...
Rfd8 {[%clk 0:01:37.7]} 24. a3 {[%clk 0:00:22]} 24... Rc6 {[%clk 0:01:33.9]} 25.
Bb4 {[%clk 0:00:21.6]} 25... Qc7 {[%clk 0:01:17.8]} 26. Qe4 {[%clk 0:00:20.4]}
26... a5 {[%clk 0:01:14.3]} 27. Bc3 {[%clk 0:00:15.5]} 27... Bxc3 {[%clk
0:01:12.4]} 28. bxc3 {[%clk 0:00:16.4]} 28... Rcd6 {[%clk 0:01:08.9]} 29. Rb1
{[%clk 0:00:14.8]} 29... Qc5 {[%clk 0:01:09.1]} 30. Kg2 {[%clk 0:00:13.2]} 30...
h6 {[%clk 0:01:02.4]} 31. h4 {[%clk 0:00:12.1]} 31... Rb8 {[%clk 0:01:00.5]} 32.
a4 {[%clk 0:00:10.3]} 32... b4 {[%clk 0:01:00.4]} 33. cxb4 {[%clk 0:00:10.5]}
33... axb4 {[%clk 0:01:01.3]} 34. Rf3 {[%clk 0:00:08]} 34... c3 {[%clk
0:00:57.5]} 35. Qf4 {[%clk 0:00:08.4]} 35... Qc7 {[%clk 0:00:54.7]} 36. Rc1
{[%clk 0:00:07.9]} 36... Rd7 {[%clk 0:00:52.3]} 37. Qe4 {[%clk 0:00:07]} 37...
Qd6 {[%clk 0:00:50]} 38. Qc4 {[%clk 0:00:06.4]} 38... Rc7 {[%clk 0:00:49.3]} 39.
Qb3 {[%clk 0:00:06.5]} 39... Qd5 {[%clk 0:00:47.7]} 40. Qc2 {[%clk 0:00:05.9]}
40... b3 {[%clk 0:00:46.9]} 41. Qg6 {[%clk 0:00:04.6]} 41... b2 {[%clk
0:00:46.6]} 42. Rd1 {[%clk 0:00:03.6]} 42... Qxd1 {[%clk 0:00:37.3]} 43. Qxe6+
{[%clk 0:00:04.2]} 43... Kh8 {[%clk 0:00:37.6]} 44. Qe5 {[%clk 0:00:02.2]} 44...
Qd7 {[%clk 0:00:36.4]} 0-1

[Event "Late-Titled-Tuesday-Blitz-September-19-2023"]
[Site "Chess.com"]
[Date "2023.09.19"]
[Round "1"]
[White "Zhigalko_Sergei"]
[Black "Levanzovsky"]
[Result "1-0"]
[WhiteElo "2839"]
[BlackElo "2469"]
[TimeControl "180+1"]
[EndTime "14:07:18 PDT"]
[Termination "Zhigalko_Sergei won by resignation"]

1. e4 {[%clk 0:03:00.9]} 1... e5 {[%clk 0:02:58.4]} 2. Nf3 {[%clk 0:03:01.3]}
2... Nc6 {[%clk 0:02:57.4]} 3. Bc4 {[%clk 0:03:01.9]} 3... Bc5 {[%clk
0:02:56.8]} 4. b4 {[%clk 0:03:02.2]} 4... Bxb4 {[%clk 0:02:56.4]} 5. c3 {[%clk
0:03:02.4]} 5... Bd6 {[%clk 0:02:55.4]} 6. d4 {[%clk 0:03:02.6]} 6... Nf6 {[%clk
0:02:54.7]} 7. O-O {[%clk 0:03:01.8]} 7... h6 {[%clk 0:02:54.3]} 8. Re1 {[%clk
0:02:50.6]} 8... O-O {[%clk 0:02:53.7]} 9. Nbd2 {[%clk 0:02:49]} 9... b6 {[%clk
0:02:53.4]} 10. Bd5 {[%clk 0:02:39.7]} 10... Qe7 {[%clk 0:02:46.4]} 11. Nc4
{[%clk 0:02:35.3]} 11... Nxd5 {[%clk 0:01:56.3]} 12. exd5 {[%clk 0:02:35.1]}
12... Na5 {[%clk 0:01:56.6]} 13. Nxa5 {[%clk 0:02:14.9]} 13... bxa5 {[%clk
0:01:56.3]} 14. dxe5 {[%clk 0:02:08.5]} 14... Bc5 {[%clk 0:01:56.7]} 15. Be3
{[%clk 0:02:02.3]} 15... Bb7 {[%clk 0:01:52.8]} 16. Rb1 {[%clk 0:01:49.5]} 16...
Rab8 {[%clk 0:01:53.3]} 17. c4 {[%clk 0:01:48.2]} 17... Bb4 {[%clk 0:01:52]} 18.
Bxa7 {[%clk 0:01:37.7]} 18... Ra8 {[%clk 0:01:51.3]} 19. Bd4 {[%clk 0:01:24.9]}
19... Bxe1 {[%clk 0:01:51.3]} 20. Rxb7 {[%clk 0:01:23.6]} 20... Bb4 {[%clk
0:01:51.2]} 21. Rxc7 {[%clk 0:01:17.9]} 21... Rfc8 {[%clk 0:01:48]} 22. Rxc8+
{[%clk 0:01:05.4]} 22... Rxc8 {[%clk 0:01:48.9]} 23. Qd3 {[%clk 0:01:05.3]}
23... d6 {[%clk 0:01:30.4]} 24. g3 {[%clk 0:01:02.1]} 24... Qc7 {[%clk
0:01:27.2]} 25. e6 {[%clk 0:00:56.3]} 25... Qxc4 {[%clk 0:01:20.4]} 26. exf7+
{[%clk 0:00:23.4]} 26... Kxf7 {[%clk 0:01:17.6]} 27. Qh7 {[%clk 0:00:23.6]}
27... Rg8 {[%clk 0:00:58.1]} 28. Qf5+ {[%clk 0:00:19.5]} 28... Ke7 {[%clk
0:00:58.6]} 29. Qe6+ {[%clk 0:00:18.2]} 29... Kf8 {[%clk 0:00:59.3]} 30. Nh4
{[%clk 0:00:15.9]} 30... g5 {[%clk 0:00:45.4]} 31. Qxh6+ {[%clk 0:00:15.6]}
31... Ke7 {[%clk 0:00:43.3]} 32. Qe6+ {[%clk 0:00:16]} 32... Kf8 {[%clk
0:00:43.9]} 33. Nf5 {[%clk 0:00:12.3]} 33... Qc7 {[%clk 0:00:39.8]} 34. Bf6
{[%clk 0:00:09.8]} 34... Rg6 {[%clk 0:00:10.8]} 35. Be7+ {[%clk 0:00:08.9]}
35... Qxe7 {[%clk 0:00:10.1]} 36. Qxe7+ {[%clk 0:00:08.8]} 1-0

[Event "Late-Titled-Tuesday-Blitz-September-19-2023"]
[Site "Chess.com"]
[Date "2023.09.19"]
[Round "1"]
[White "dawid498"]
[Black "Mimsychess"]
[Result "1-0"]
[WhiteElo "2642"]
[BlackElo "2360"]
[TimeControl "180+1"]
[EndTime "14:07:18 PDT"]
[Termination "dawid498 won on time"]

1. e4 {[%clk 0:03:00.9]} 1... c6 {[%clk 0:02:57.5]} 2. d4 {[%clk 0:03:00.5]}
2... d5 {[%clk 0:02:54.8]} 3. e5 {[%clk 0:03:01.1]} 3... Bf5 {[%clk 0:02:52.9]}
4. Nf3 {[%clk 0:03:01.1]} 4... e6 {[%clk 0:02:49.5]} 5. Be2 {[%clk 0:03:01.8]}
5... c5 {[%clk 0:02:47.1]} 6. c3 {[%clk 0:02:44.6]} 6... Nc6 {[%clk 0:02:35.2]}
7. O-O {[%clk 0:02:44.4]} 7... h6 {[%clk 0:02:21.9]} 8. a3 {[%clk 0:01:56.1]}
8... cxd4 {[%clk 0:02:15.7]} 9. Nxd4 {[%clk 0:01:56.2]} 9... Bh7 {[%clk
0:02:02.2]} 10. Nd2 {[%clk 0:01:12.7]} 10... Nge7 {[%clk 0:01:53.3]} 11. N2f3
{[%clk 0:01:01.9]} 11... g5 {[%clk 0:01:27.1]} 12. Nxc6 {[%clk 0:00:53.1]} 12...
bxc6 {[%clk 0:01:15.8]} 13. Nd4 {[%clk 0:00:46.1]} 13... Bg7 {[%clk 0:01:13.2]}
14. f4 {[%clk 0:00:43.3]} 14... Qb6 {[%clk 0:01:01.8]} 15. Kh1 {[%clk
0:00:38.3]} 15... Nf5 {[%clk 0:00:59.7]} 16. Nxf5 {[%clk 0:00:35.3]} 16... Bxf5
{[%clk 0:00:59.3]} 17. c4 {[%clk 0:00:32.5]} 17... gxf4 {[%clk 0:00:47.6]} 18.
Bxf4 {[%clk 0:00:33.4]} 18... Rd8 {[%clk 0:00:38.4]} 19. cxd5 {[%clk 0:00:21.8]}
19... Rxd5 {[%clk 0:00:35.4]} 20. Qc1 {[%clk 0:00:22.3]} 20... Bxe5 {[%clk
0:00:33]} 21. Bxe5 {[%clk 0:00:22]} 21... Rxe5 {[%clk 0:00:33]} 22. Qc3 {[%clk
0:00:19.6]} 22... Qc5 {[%clk 0:00:28.5]} 23. Qd2 {[%clk 0:00:11]} 23... Rd5
{[%clk 0:00:22.4]} 24. Qf4 {[%clk 0:00:10]} 24... Qd6 {[%clk 0:00:19.8]} 25. Qf2
{[%clk 0:00:09]} 25... Rd2 {[%clk 0:00:19]} 26. Rad1 {[%clk 0:00:08.6]} 26...
O-O {[%clk 0:00:17.9]} 27. Rxd2 {[%clk 0:00:07.8]} 27... Qxd2 {[%clk 0:00:18.7]}
28. Qg3+ {[%clk 0:00:08.3]} 28... Qg5 {[%clk 0:00:18.5]} 29. Qc3 {[%clk
0:00:08]} 29... Rd8 {[%clk 0:00:15.6]} 30. Bf3 {[%clk 0:00:08]} 30... Qd2 {[%clk
0:00:07.8]} 31. Qf6 {[%clk 0:00:08]} 31... Qd4 {[%clk 0:00:07.2]} 32. Qxh6
{[%clk 0:00:07.8]} 32... Qxb2 {[%clk 0:00:07.8]} 33. Qg5+ {[%clk 0:00:07.8]}
33... Kh7 {[%clk 0:00:07.1]} 34. Qxd8 {[%clk 0:00:08.7]} 1-0

[Event "Late-Titled-Tuesday-Blitz-September-19-2023"]
[Site "Chess.com"]
[Date "2023.09.19"]
[Round "1"]
[White "farzadbfd"]
[Black "eCztery"]
[Result "1-0"]
[WhiteElo "2702"]
[BlackElo "2416"]
[TimeControl "180+1"]
[EndTime "14:07:20 PDT"]
[Termination "farzadbfd won on time"]

1. d4 {[%clk 0:02:59.7]} 1... Nf6 {[%clk 0:02:59.1]} 2. Nf3 {[%clk 0:02:59.6]}
2... e6 {[%clk 0:02:55.9]} 3. c4 {[%clk 0:02:59]} 3... Bb4+ {[%clk 0:02:55.2]}
4. Bd2 {[%clk 0:02:55.8]} 4... Qe7 {[%clk 0:02:54.9]} 5. g3 {[%clk 0:02:54.5]}
5... O-O {[%clk 0:02:52.6]} 6. Bg2 {[%clk 0:02:54.6]} 6... d5 {[%clk 0:02:51.5]}
7. a3 {[%clk 0:02:49.1]} 7... Bxd2+ {[%clk 0:02:51.2]} 8. Nbxd2 {[%clk 0:02:50]}
8... Nbd7 {[%clk 0:02:31.6]} 9. O-O {[%clk 0:02:45.7]} 9... c6 {[%clk
0:02:27.9]} 10. Qc2 {[%clk 0:02:43.9]} 10... e5 {[%clk 0:02:26.6]} 11. dxe5
{[%clk 0:02:42.1]} 11... Nxe5 {[%clk 0:02:27.5]} 12. Nxe5 {[%clk 0:02:42.2]}
12... Qxe5 {[%clk 0:02:28.4]} 13. cxd5 {[%clk 0:02:37]} 13... cxd5 {[%clk
0:02:22.8]} 14. Nf3 {[%clk 0:02:30.4]} 14... Qh5 {[%clk 0:02:21.5]} 15. Rfd1
{[%clk 0:02:10.3]} 15... Re8 {[%clk 0:02:08.6]} 16. Rd4 {[%clk 0:01:58.1]} 16...
Bf5 {[%clk 0:01:57.7]} 17. Qd1 {[%clk 0:01:52.6]} 17... Be4 {[%clk 0:01:48.5]}
18. e3 {[%clk 0:01:29.9]} 18... Qf5 {[%clk 0:00:33.6]} 19. Nh4 {[%clk
0:01:27.1]} 19... Qe5 {[%clk 0:00:30.7]} 20. Rc1 {[%clk 0:01:23.9]} 20... h6
{[%clk 0:00:26.9]} 21. Rc5 {[%clk 0:01:00.1]} 21... Rac8 {[%clk 0:00:24.8]} 22.
Qc1 {[%clk 0:00:53.1]} 22... Rxc5 {[%clk 0:00:22.4]} 23. Qxc5 {[%clk 0:00:54]}
23... b6 {[%clk 0:00:19.2]} 24. Qc3 {[%clk 0:00:49.8]} 24... Qe6 {[%clk
0:00:17]} 25. Rd1 {[%clk 0:00:24.2]} 25... Rc8 {[%clk 0:00:17.1]} 26. Qd4 {[%clk
0:00:24.3]} 26... Rc2 {[%clk 0:00:15.5]} 27. Nf3 {[%clk 0:00:20.9]} 27... Qf5
{[%clk 0:00:14.7]} 28. Rd2 {[%clk 0:00:10.9]} 28... Rc1+ {[%clk 0:00:11.2]} 29.
Rd1 {[%clk 0:00:11.3]} 29... Rc2 {[%clk 0:00:10.2]} 30. Nd2 {[%clk 0:00:12]}
30... Ng4 {[%clk 0:00:09.6]} 31. f3 {[%clk 0:00:10.7]} 31... Nf6 {[%clk
0:00:03.1]} 32. fxe4 {[%clk 0:00:10.7]} 32... Nxe4 {[%clk 0:00:04]} 33. Nxe4
{[%clk 0:00:10.5]} 33... dxe4 {[%clk 0:00:03.6]} 34. Rf1 {[%clk 0:00:10.3]}
34... Qb5 {[%clk 0:00:02.5]} 35. Qd8+ {[%clk 0:00:10]} 35... Kh7 {[%clk
0:00:01.5]} 36. Bxe4+ {[%clk 0:00:10.7]} 1-0

[Event "Late-Titled-Tuesday-Blitz-September-19-2023"]
[Site "Chess.com"]
[Date "2023.09.19"]
[Round "1"]
[White "Schwindle"]
[Black "Rutricks"]
[Result "0-1"]
[WhiteElo "2426"]
[BlackElo "2710"]
[TimeControl "180+1"]
[EndTime "14:07:22 PDT"]
[Termination "Rutricks won by resignation"]

1. e4 {[%clk 0:02:40.5]} 1... g6 {[%clk 0:03:00.9]} 2. d4 {[%clk 0:02:39.3]}
2... Bg7 {[%clk 0:03:01.8]} 3. Nc3 {[%clk 0:02:39.7]} 3... c6 {[%clk 0:03:02.5]}
4. Nf3 {[%clk 0:02:39.5]} 4... d5 {[%clk 0:03:03.1]} 5. e5 {[%clk 0:02:39.2]}
5... f6 {[%clk 0:03:03.1]} 6. Bf4 {[%clk 0:02:36.9]} 6... Bg4 {[%clk 0:03:02.2]}
7. h3 {[%clk 0:02:35.7]} 7... Bxf3 {[%clk 0:03:01.2]} 8. Qxf3 {[%clk 0:02:36.6]}
8... fxe5 {[%clk 0:03:01.9]} 9. dxe5 {[%clk 0:02:35.6]} 9... Nh6 {[%clk
0:02:56.7]} 10. Bxh6 {[%clk 0:02:25.9]} 10... Bxh6 {[%clk 0:02:57.6]} 11. Bd3
{[%clk 0:02:20.9]} 11... Qc7 {[%clk 0:02:54.5]} 12. O-O {[%clk 0:02:15.9]} 12...
Nd7 {[%clk 0:02:31.8]} 13. Rfe1 {[%clk 0:01:58.3]} 13... Bg7 {[%clk 0:01:26.5]}
14. e6 {[%clk 0:01:50.5]} 14... Ne5 {[%clk 0:01:26.8]} 15. Qf4 {[%clk
0:01:39.6]} 15... O-O-O {[%clk 0:01:23.8]} 16. Qa4 {[%clk 0:01:37.3]} 16... Qb6
{[%clk 0:01:21.9]} 17. Bf1 {[%clk 0:01:29.6]} 17... Qxb2 {[%clk 0:01:14.4]} 18.
Qxa7 {[%clk 0:01:15.3]} 18... Qxc3 {[%clk 0:01:12.2]} 19. Rab1 {[%clk
0:00:45.7]} 19... Kc7 {[%clk 0:00:58.8]} 20. Re3 {[%clk 0:00:36.7]} 20... Qxc2
{[%clk 0:00:46.4]} 21. Rxb7+ {[%clk 0:00:22.9]} 21... Kd6 {[%clk 0:00:46.9]} 22.
f4 {[%clk 0:00:20.9]} 22... Nc4 {[%clk 0:00:05.7]} 23. Bxc4 {[%clk 0:00:17.7]}
23... Qxc4 {[%clk 0:00:06.6]} 24. Rd7+ {[%clk 0:00:13.8]} 24... Rxd7 {[%clk
0:00:07.2]} 25. Qxd7+ {[%clk 0:00:14]} 25... Kc5 {[%clk 0:00:08]} 26. Qa7+
{[%clk 0:00:14.1]} 26... Kd6 {[%clk 0:00:02.2]} 27. Qd7+ {[%clk 0:00:13.8]}
27... Kc5 {[%clk 0:00:02.4]} 28. Qa7+ {[%clk 0:00:09.8]} 28... Kd6 {[%clk
0:00:02.3]} 29. Qa3+ {[%clk 0:00:09.7]} 29... Qc5 {[%clk 0:00:01.9]} 30. Qd3
{[%clk 0:00:09.2]} 30... Bd4 {[%clk 0:00:02.4]} 31. Kh2 {[%clk 0:00:09.4]} 31...
Bxe3 {[%clk 0:00:03.1]} 32. f5 {[%clk 0:00:10.1]} 32... Bf4+ {[%clk 0:00:03.7]}
33. g3 {[%clk 0:00:08.9]} 33... Qf2+ {[%clk 0:00:04.3]} 34. Kh1 {[%clk
0:00:08.8]} 34... Bxg3 {[%clk 0:00:04.4]} 35. Qa3+ {[%clk 0:00:08.9]} 35... Ke5
{[%clk 0:00:04.3]} 36. Qc3+ {[%clk 0:00:08.4]} 36... Kxf5 {[%clk 0:00:04.6]} 37.
Qc2+ {[%clk 0:00:08.9]} 37... Qxc2 {[%clk 0:00:04]} 0-1